Cogmind - Beta 14 *** ADVENTURER MODE // 2024.09.21 @ 18:18:11 // Winter2019/RPGLIKE Player: Gallgagger Result: Self-destructed Performance ------------- Evolutions (2) 1000 Regions Visited (7) 1400 Robots Destroyed (114) 570 Value Destroyed (3686) 3686 Prototype IDs (18) 360 Alien Tech Used (0) 0 Bonus (-72) -72 TOTAL SCORE: 6944 Bonus ------- Follower Combat Kills 90 Friendly Fire -162 Cogmind --------- Core Integrity 713/800 Matter 280/300 Energy 440/440 System Corruption 0% Temperature Cool (0) Movement Walking (130) Location -8/Scraptown Parts ------- > --- POWER (2) -------- Improved Ion Engine Deuterium Engine > --- PROPULSION (2) --- Cargo Legs > --- UTILITY (3+2) ---- Trap Scanner Makeshift Light Armor Plating Makeshift Hacking Suite Makeshift System Shield (+) > --- WEAPON (3) ------- Overtuned Pulse Rifle Heavy Plasma Cannon Mini Assault Cannon > --- INVENTORY (1) ---- CPS Tube (1) Peak State ------------ > --- POWER ------------ Improved Ion Engine Deuterium Engine > --- PROPULSION ------- Cargo Legs > --- UTILITY ---------- Trap Scanner Makeshift Light Armor Plating Makeshift Hacking Suite Makeshift System Shield > --- WEAPON ----------- Overtuned Pulse Rifle Heavy Plasma Cannon Mini Assault Cannon > --- INVENTORY -------- CPS Tube [Rating: 49] Favorites ----------- Power Ion Engine Engine Ion Engine Propulsion Cargo Legs Leg Cargo Legs Wheel Compact Wheel Flight Unit Flight Unit Utility Makeshift Hacking Suite Device Trap Scanner Processor Targeting Computer Hackware Makeshift Hacking Suite Protection Makeshift Light Armor Plating Weapon Flak Cannon Energy Gun Riot Gun Energy Cannon Advanced Beam Cannon Ballistic Gun Subdweller Machine Gun Ballistic Cannon Flak Cannon Launcher Subdweller Shrapnel Launcher Special Weapon CPS Tube Build | -11 -10 -10 -10 -8 -8 -8 -8 ------- Run | Yrd Mat Min Sub Mat Sto Rec Scr Slots Evolved 6 | 3 1 . . 1 . . 1 Power 1 | 1 . . . . . . . Propulsion 1 | 1 . . . . . . . Utility 2 | 1 . . . 1 . . . Weapon 2 | . 1 . . . . . 1 Parts Attached 39 | 6 9 . 11 5 4 . 4 Power 8 | 2 1 . 2 2 1 . . Engine 8 | 2 1 . 2 2 1 . . Core . | . . . . . . . . Reactor . | . . . . . . . . Propulsion 7 | 2 4 . 1 . . . . Treads . | . . . . . . . . Leg 1 | . . . 1 . . . . Wheel 4 | 2 2 . . . . . . Hover . | . . . . . . . . Flight 2 | . 2 . . . . . . Utility 5 | . 1 . 3 1 . . . Device 1 | . . . . 1 . . . Storage . | . . . . . . . . Processor 1 | . 1 . . . . . . Hackware 2 | . . . 2 . . . . Protection 1 | . . . 1 . . . . Artifact . | . . . . . . . . Weapon 19 | 2 3 . 5 2 3 . 4 Energy Gun 4 | 2 . . 1 . . . 1 Energy Cannon 4 | . 3 . . . . . 1 Ballistic Gun 3 | . . . 3 . . . . Ballistic Cannon 6 | . . . . 2 3 . 1 Launcher 1 | . . . 1 . . . . Special Weapon 1 | . . . . . . . 1 Impact Weapon . | . . . . . . . . Slashing Weapon . | . . . . . . . . Piercing Weapon . | . . . . . . . . Special Melee Weapon . | . . . . . . . . Unidentified Prototypes 3 | . 1 . 1 . 1 . . Corrupted Parts 2 | . . . 2 . . . . System Corruption 10 | . . . 10 . . . . Parts Lost 1 | . . . 1 . . . . Power 1 | . . . 1 . . . . Propulsion . | . . . . . . . . Utility . | . . . . . . . . Weapon . | . . . . . . . . Highest Loss Streak 1 | . . . 1 . . . . To Critical Strikes . | . . . . . . . . Average Slot Usage (%) 79 | . 76 75 79 80 81 81 81 Engine 20 | . 25 25 22 19 18 18 17 Leg 6 | . . . 5 9 9 9 8 Wheel 7 | . 24 25 12 . . . . Device 3 | . . . . 2 9 9 8 Hackware 13 | . . . 10 19 18 18 17 Protection 7 | . . . 7 9 9 9 8 Energy Gun 2 | . . . 6 . . . 2 Energy Cannon 5 | . 23 25 5 . . . 2 Ballistic Gun 1 | . . . 4 . . . . Ballistic Cannon 9 | . . . . 19 18 18 13 Launcher 1 | . . . 4 . . . . Peak Build Rating 49 | 5 11 10 36 40 44 42 49 Average Rating 30 | 4 9 10 23 37 42 42 42 On Entrance 23 | . 5 10 10 36 40 42 42 Naked Turns . | . . . . . . . . Heaviest Build 39 | 10 16 16 24 30 34 34 39 Greatest Support 55 | 26 32 32 55 55 55 55 55 Greatest Overweight (x) 5 | . 5 . . . . . . Average Overweight (x) . | . . . . . . . . Largest Inventory Capacity 1 | . 1 1 1 1 1 1 1 Average Capacity . | . . 1 1 1 1 1 1 Most Carried 1 | . . . . 1 1 1 1 Average Carried . | . . . . . . 1 1 Final Capacity 1 | . 1 1 1 1 1 1 1 Final Carried 1 | . . . . . 1 1 1 Class Distribution -------------------- 74% | Hacker-Mutant 23% | Mutant Dominant Class ---------------- Mutant | -10/Materials Mutant | -10/Mines Hacker-Mutant | -10/Subcaves Hacker-Mutant | -8/Materials Hacker-Mutant | -8/Storage Hacker-Mutant | -8/Recycling Hacker-Mutant | -8/Scraptown Resources | -11 -10 -10 -10 -8 -8 -8 -8 ----------- Run | Yrd Mat Min Sub Mat Sto Rec Scr Matter Collected 2412 | 260 90 . 655 895 456 36 20 Remotely . | . . . . . . . . Salvage Created 3089 | . 561 58 892 841 556 110 71 Parts 206 | . 45 4 61 57 30 9 . Haulers Intercepted 3 | . 1 . . 1 1 . . Recyclers Shooed 5 | . 2 . . 2 1 . . Parts Field Recycled . | . . . . . . . . Retrieved Matter . | . . . . . . . . Parts Self-Destructed 14 | . . . 14 . . . . Prevented . | . . . . . . . . Kills | -11 -10 -10 -10 -8 -8 -8 -8 ------- Run | Yrd Mat Min Sub Mat Sto Rec Scr Combat Hostiles Destroyed 96 | . 15 1 28 31 16 3 2 Guns 10 | . . . 9 . . . 1 Cannons 72 | . 15 1 6 31 16 3 . AOE 12 | . . . 12 . . . . Classes Destroyed 13 | . 5 . 2 4 1 . 1 Hauler 3 | . 1 . . 1 1 . . Recycler 4 | . 1 . . 1 2 . . Mechanic 1 | . . . . . 1 . . Turret 2 | . . . 2 . . . . Watcher 9 | . 3 . . 5 1 . . Swarmer 22 | . 9 . 5 8 . . . Grunt 31 | . 6 1 2 11 11 . . Brawler 1 | . . . . 1 . . . Duelist 1 | . . . . 1 . . . Sentry 17 | . . . . 9 5 3 . Hunter 1 | . . . . 1 . . . Subdweller 21 | . . . 21 . . . . Federalist 2 | . . . . . . . 2 Best Kill Streak 6 | . 4 1 5 6 4 1 2 Combat Bots Only 5 | . 4 1 5 5 4 1 2 Max Kills in Single Turn 2 | . 2 1 2 2 2 1 1 Gunslinging 1 | . . . 1 . . . . Exploded 2 | . . . 2 . . . . Melee . | . . . . . . . . Uniques/NPCs Destroyed 1 | . . . . . . . 1 Triborg (-8/Scraptown) Combat | -11 -10 -10 -10 -8 -8 -8 -8 -------- Run | Yrd Mat Min Sub Mat Sto Rec Scr Hostile Shots Fired 309 | . 19 7 149 83 45 . 6 Missed 123 | . 6 1 63 37 14 . 2 Damage Taken 2664 | . 106 64 1435 578 422 . 59 Core 2084 | . 87 50 1149 415 330 . 53 Absorbed by Shields . | . . . . . . . . Redirected to Core 1610 | . 59 42 844 368 279 . 18 Ignored by Resistances 758 | . 33 19 409 165 116 . 16 Core Remaining (%) 66 | 100 . . 32 . . . . Volleys Fired 280 | . 28 3 135 71 35 3 5 Largest 3 | . 2 2 2 2 2 2 3 Hottest 170 | . 136 136 136 88 92 88 170 Shots Fired 453 | . 56 6 173 132 70 6 10 Gun 103 | . . . 99 . . . 4 Cannon 325 | . 56 6 50 132 70 6 5 Launcher 24 | . . . 24 . . . . Special 1 | . . . . . . . 1 Kinetic 277 | . . . 69 132 70 6 . Thermal 121 | . 56 6 50 . . . 9 Explosive . | . . . . . . . . Electromagnetic 54 | . . . 54 . . . . Robot Hit Streak 44 | . 11 4 27 44 22 9 15 Robot Miss Streak 6 | . 2 1 2 5 6 1 . Penetration Max . | . . . . . . . . Secondary Targets 1 | . . . 1 . . . . Max Gunslinging Chain 1 | . . . 1 . . . . Shots Hit Robots 332 | . 32 4 112 113 56 6 9 Core Hits 343 | . 20 2 61 152 93 11 4 Critical Kills 1 | . . . . . . . 1 Critical Parts Destroyed 1 | . . . 1 . . . . Critical Strikes 3 | . . . 1 . . . 2 Burn 1 | . . . . . . . 1 Meltdown 1 | . . . . . . . 1 Destroy 1 | . . . 1 . . . . Melee Attacks . | . . . . . . . . Impact . | . . . . . . . . Slashing . | . . . . . . . . Piercing . | . . . . . . . . Sneak Attacks . | . . . . . . . . Combat Hostiles . | . . . . . . . . Follow-up Attacks . | . . . . . . . . Damage Inflicted 8526 | . 735 82 3391 2355 1550 173 240 Guns 1178 | . . . 1098 . . . 80 Cannons 5758 | . 735 82 717 2342 1549 173 160 Explosions 1589 | . . . 1576 13 . . . Melee . | . . . . . . . . Ramming 1 | . . . . . 1 . . Kinetic 5921 | . . . 1857 2342 1549 173 . Thermal 1826 | . 735 82 769 . . . 240 Explosive 13 | . . . . 13 . . . Electromagnetic 765 | . . . 765 . . . . Impact . | . . . . . . . . Slashing . | . . . . . . . . Piercing . | . . . . . . . . Highest Corruption 10 | . . . 10 . . . . Average Corruption 7 | . . . 7 . . . . Corruption Purged . | . . . . . . . . Corruption Blocked . | . . . . . . . . Effects 34 | . . . 34 . . . . Message Errors 8 | . . . 8 . . . . Matter Fused 4 | . . . 4 . . . . Heat Flow Errors 8 | . . . 8 . . . . Energy Discharges 1 | . . . 1 . . . . Parts Rejected 1 | . . . 1 . . . . Data Loss (minor) 1 | . . . 1 . . . . Data Loss (major) 3 | . . . 3 . . . . Misfires 3 | . . . 3 . . . . Alerts 3 | . . . 3 . . . . Weapon Failures 2 | . . . 2 . . . . Overload Shots . | . . . . . . . . Overflow Damage 96 | . 11 . 83 . 2 . . Projectiles 13 | . 11 . . . 2 . . Explosions 83 | . . . 83 . . . . Melee . | . . . . . . . . Knockbacks 101 | . . . . 72 29 . . Impact . | . . . . . . . . Kinetic 93 | . . . . 66 27 . . Secondary 8 | . . . . 6 2 . . Self-Inflicted Damage 158 | . . . 99 59 . . . Shots 6 | . . . 5 1 . . . Rammed . | . . . . . . . . Targets Rammed 1 | . . . . . 1 . . Kicked 1 | . . . . . 1 . . Crushed . | . . . . . . . . Highest Temperature 256 | . 90 39 230 . . . 256 Average Temperature 93 | . 68 29 107 . . . 118 Received Heat Transfer 1314 | . . 48 768 252 234 . 12 Effects 1 | . . . . . . . 1 Energy Bleed 1 | . . . . . . . 1 Siege Activations . | . . . . . . . . Robots Corrupted 1 | . . . 1 . . . . Combat Hostiles 1 | . . . 1 . . . . Parts Fried 4 | . . . 4 . . . . Impact Corruptions . | . . . . . . . . Robots Melted 1 | . . . . . . . 1 Combat Hostiles 1 | . . . . . . . 1 Parts Melted 4 | . 1 . 1 . . . 2 Heat Transferred 3325 | . 1332 148 1295 . . . 550 Parts Sabotaged . | . . . . . . . . Parts Stolen . | . . . . . . . . Parts Stripped . | . . . . . . . . Power Chain Reactions 1 | . . . 1 . . . . Alert | -11 -10 -10 -10 -8 -8 -8 -8 ------- Run | Yrd Mat Min Sub Mat Sto Rec Scr Peak Influence 357 | . 299 114 . 357 299 133 . Initial 94 | . . 94 . . 75 82 . Average 137 | . 156 73 . 202 185 46 . Maximum Alert Level 1 | . 1 . . 1 1 . . Low Security (%) 70 | 100 63 100 . 43 57 100 . Level 1 29 | . 36 . . 56 42 . . Level 2 . | . . . . . . . . Level 3 . | . . . . . . . . Level 4 . | . . . . . . . . Level 5 . | . . . . . . . . High Security . | . . . . . . . . Max Security . | . . . . . . . . Squads Dispatched 9 | . 3 . . 5 1 . . Investigation 5 | . 3 . . 2 . . . Extermination . | . . . . . . . . Reinforcement 1 | . . . . . 1 . . Assault . | . . . . . . . . Garrison 3 | . . . . 3 . . . Intercept . | . . . . . . . . Searches Triggered . | . . . . . . . . Construction Impeded . | . . . . . . . . Haulers Reinforced . | . . . . . . . . Active Scanning Responses . | . . . . . . . . Cargo Convoy Interrupts . | . . . . . . . . Stealth | -11 -10 -10 -10 -8 -8 -8 -8 --------- Run | Yrd Mat Min Sub Mat Sto Rec Scr Distress Signals 4 | . . . . 2 2 . . Communications Jammed . | . . . . . . . . Distress Signals . | . . . . . . . . Times Spotted 123 | . 19 4 40 38 17 . 5 Peak Tracking Total 5 | . 3 2 4 5 4 . 3 Tactical Retreats 8 | . 2 . 4 2 . . . Traps | -11 -10 -10 -10 -8 -8 -8 -8 ------- Run | Yrd Mat Min Sub Mat Sto Rec Scr Traps Triggered 7 | . 5 . . 1 1 . . Indirectly . | . . . . . . . . Trap Hack Attempts . | . . . . . . . . Triggered . | . . . . . . . . Disarmed . | . . . . . . . . Reprogrammed . | . . . . . . . . Reused . | . . . . . . . . Traps Extracted . | . . . . . . . . Installed . | . . . . . . . . Triggered . | . . . . . . . . Machines | -11 -10 -10 -10 -8 -8 -8 -8 ---------- Run | Yrd Mat Min Sub Mat Sto Rec Scr Machines Disabled 6 | . 1 . 3 2 . . . Max in Single Turn 1 | . 1 . 1 1 . . . Machines Repaired . | . . . . . . . . Machines Dismantled . | . . . . . . . . Machines Sabotaged . | . . . . . . . . Overloaded Fab Kills . | . . . . . . . . Hacking | -11 -10 -10 -10 -8 -8 -8 -8 --------- Run | Yrd Mat Min Sub Mat Sto Rec Scr Machines Accessed 33 | . 5 . 2 12 3 10 1 Terminals 24 | . 4 . . 11 3 6 . Fabricators . | . . . . . . . . Repair Stations . | . . . . . . . . Recycling Units 6 | . 1 . . 1 . 4 . Scanalyzers . | . . . . . . . . Garrison Access . | . . . . . . . . Total Hacks 127 | . 6 . 13 55 9 40 4 Successful 115 | . 6 . 13 51 5 36 4 Failed 10 | . . . . 3 4 3 . Catastrophic 2 | . . . . 2 . . . Database Lockouts 2 | . . . . 1 . 1 . Manual 97 | . 5 . . 49 8 35 . Terminals 98 | . 5 . . 54 9 30 . Fabricators . | . . . . . . . . Repair Stations . | . . . . . . . . Recycling Units 12 | . 1 . . 1 . 10 . Scanalyzers . | . . . . . . . . Garrison Access . | . . . . . . . . Terminal Hacks 50 | . 1 . 13 20 3 9 4 Record 18 | . . . 12 2 . . 4 Robot Analysis 6 | . . . . 6 . . . Prototype ID Bank 3 | . . . . . . 3 . Open Door 1 | . . . . . 1 . . Level Access Points 1 | . . . . 1 . . . Branch Access Points 3 | . 1 . . 1 . 1 . Emergency Access Points 1 | . . . . 1 . . . Alert Level 5 | . . . . 2 1 2 . Unreport Threat 4 | . . . . 3 1 . . Dispatch Records 2 | . . . . 1 . 1 . Surveillance Status 1 | . . . . 1 . . . Recall Investigation 1 | . . . . 1 . . . Zone Layout 3 | . . . . 1 . 2 . Derelict Proto ID Bank 1 | . . . 1 . . . . Fabricator Hacks . | . . . . . . . . Repair Station Hacks . | . . . . . . . . Recycling Unit Hacks . | . . . . . . . . Scanalyzer . | . . . . . . . . Garrison Access Hacks . | . . . . . . . . Unauthorized Hacks 65 | . 5 . . 31 2 27 . Terminals 55 | . 4 . . 30 2 19 . Track 11 | . . . . 6 . 5 . Assimilate 2 | . . . . 2 . . . Botnet 23 | . 4 . . 11 2 6 . Disrupt 5 | . . . . 3 . 2 . Operators 2 | . . . . 1 . 1 . Skim 12 | . . . . 7 . 5 . Fabricators . | . . . . . . . . Repair Stations . | . . . . . . . . Recycling Units 10 | . 1 . . 1 . 8 . Reject 4 | . . . . . . 4 . Mask 4 | . . . . . . 4 . Tunnel 2 | . 1 . . 1 . . . Scanalyzers . | . . . . . . . . Garrison Access . | . . . . . . . . Data Cores Recovered . | . . . . . . . . Used . | . . . . . . . . Hacking Detections 13 | . 2 . . 4 2 5 . Full Trace Events . | . . . . . . . . Feedback Events . | . . . . . . . . Feedback Blocked . | . . . . . . . . Robot Schematics Acquired . | . . . . . . . . Robots Built . | . . . . . . . . Authchips . | . . . . . . . . Time . | . . . . . . . . Total Robot Build Rating . | . . . . . . . . Part Schematics Acquired . | . . . . . . . . Parts Built . | . . . . . . . . Authchips . | . . . . . . . . Time . | . . . . . . . . Total Part Build Rating . | . . . . . . . . Parts Repaired . | . . . . . . . . Time . | . . . . . . . . Parts Recycled . | . . . . . . . . Recycled Matter . | . . . . . . . . Retrieved Matter . | . . . . . . . . Retrieved Components . | . . . . . . . . Parts Scanalyzed . | . . . . . . . . Part Schematics Acquired . | . . . . . . . . Parts Damaged . | . . . . . . . . Bothacking | -11 -10 -10 -10 -8 -8 -8 -8 ------------ Run | Yrd Mat Min Sub Mat Sto Rec Scr Used RIF Installer . | . . . . . . . . Robots Hacked . | . . . . . . . . Non-combat . | . . . . . . . . Combat . | . . . . . . . . Robot Hacks Applied . | . . . . . . . . Relay Couplers Released . | . . . . . . . . Fabnet Peak Effective % . | . . . . . . . . Robots Rewired . | . . . . . . . . Allies Hacked . | . . . . . . . . Hacks Repelled . | . . . . . . . . Allies | -11 -10 -10 -10 -8 -8 -8 -8 -------- Run | Yrd Mat Min Sub Mat Sto Rec Scr Total Allies 13 | . . 3 . . 10 . . Largest Group 10 | . . 3 3 . 10 10 10 Highest-Rated Group 173 | . . 40 40 . 173 173 173 Highest-Rated Ally 29 | . . 16 16 . 29 29 29 Total Orders 15 | . . . . . . 2 13 STAY 8 | . . . . . . 1 7 FOLLOW 7 | . . . . . . 1 6 Ally Attacks 43 | . . . 6 . . . 37 Total Damage 545 | . . . 78 . . . 467 Kills 4 | . . . . . . . 4 Allies Corrupted . | . . . . . . . . Allies Melted . | . . . . . . . . Intel | -11 -10 -10 -10 -8 -8 -8 -8 ------- Run | Yrd Mat Min Sub Mat Sto Rec Scr Robot Analysis Total 6 | . . . . 6 . . . Derelict Logs Recovered 3 | . . 1 2 . . . . Drone Launches . | . . . . . . . . Drone Recoveries . | . . . . . . . . Exploration | -11 -10 -10 -10 -8 -8 -8 -8 ------------- Run | Yrd Mat Min Sub Mat Sto Rec Scr Turns Passed 8614 | 56 670 641 2580 1433 722 1023 1489 Spaces Moved 6062 | 53 579 500 1882 886 409 717 1036 Core 3 | 1 2 . . . . . . Treads . | . . . . . . . . Legs 3907 | . . . 859 886 409 717 1036 Wheels 2152 | 52 577 500 1023 . . . . Hover . | . . . . . . . . Flight . | . . . . . . . . Fastest Speed 50 | 50 90 100 100 130 130 130 130 Average Speed 118 | 89 95 100 113 130 130 130 130 Slowest Speed 300 | 90 300 100 130 130 130 130 130 Overloaded Moves . | . . . . . . . . Propulsion Burnouts . | . . . . . . . . Robots Hopped . | . . . . . . . . Cave-ins Triggered . | . . . . . . . . Exploration Rate (%) 66 | 3 88 63 94 73 62 92 56 Regions Visited 7 Branch Regions 5 Pre-discovered Areas 11 | . 1 1 2 4 . 3 . Known Exits Taken 4 | . 1 . . 1 1 1 . Unknown Exits Taken 3 | 1 . 1 1 . . . . Scrap Searched 18 | . . 1 9 . . . 8 Spaces Dug 51 | . . . 51 . . . . Terrain Destroyed 371 | . . . 324 46 1 . . Melee . | . . . . . . . . Projectile 20 | . . . 19 . 1 . . AOE 351 | . . . 305 46 . . . Terrain Rammed . | . . . . . . . . Walls Destroyed . | . . . . . . . . Machines Disabled . | . . . . . . . . Actions | -11 -10 -10 -10 -8 -8 -8 -8 --------- Run | Yrd Mat Min Sub Mat Sto Rec Scr Total 7004 | 58 636 635 2145 1033 527 802 1168 Wait 519 | . 10 129 85 35 58 79 123 Move 6055 | 52 578 499 1881 885 408 716 1036 Hop . | . . . . . . . . Pick Up . | . . . . . . . . Fast Attach 21 | 5 6 . 8 1 . . 1 Attach . | . . . . . . . . Detach . | . . . . . . . . Swap 18 | 1 3 . 3 4 4 . 3 Drop 8 | . 2 . 4 1 1 . . Fire 280 | . 28 3 135 71 35 3 5 Melee . | . . . . . . . . Ram . | . . . . . . . . Kick 1 | . . . . . 1 . . Crush . | . . . . . . . . Escape Stasis . | . . . . . . . . Rewire . | . . . . . . . . Trap . | . . . . . . . . Miscellaneous 102 | . 9 4 29 36 20 4 . Route ------- -11/Scrapyard -10/Materials (discovered 4 exits: [*Mat x3] / *Min) -10/Mines (discovered 2 exits: [*Mat] / *Sub) -10/Subcaves (discovered 3 exits: *Mat x2 / *Rec) -8/Materials (discovered 4 exits: *Fac x3 / *Sto) -8/Storage (discovered 2 exits: Fac / *Rec) -8/Recycling (discovered 2 exits: *Fac / *Scr) -8/Scraptown (discovered 2 exits: *Fac x2) History --------- Turn | Location | Event 1 | -11/Scrapyard | Upgraded with Power slot (x1) 1 | -11/Scrapyard | Upgraded with Propulsion slot (x1) 1 | -11/Scrapyard | Upgraded with Utility slot (x1) 6 | -11/Scrapyard | Discovered new exit (range 16) 57 | -11/Scrapyard | Entered Materials 117 | -10/Materials | Upgraded with Weapon slot (x1) 191 | -10/Materials | Discovered new exit (range 13) 282 | -10/Materials | Discovered new exit (range 11) 309 | -10/Materials | Build established: Mutant 326 | -10/Materials | Discovered new exit (range 14) 456 | -10/Materials | Identified exit to Mines 545 | -10/Materials | Reached level 2 570 | -10/Materials | Discovered new exit (range 13) 727 | -10/Materials | Entered Mines 818 | -10/Mines | Met a Derelict bent on vengeance 880 | -10/Mines | Learned location of Storage (-8) 942 | -10/Mines | Found DCF Scrap (14 items) 971 | -10/Mines | Discovered new exit (range 10) 979 | -10/Mines | Learned 2 Materials zone layouts 1140 | -10/Mines | Discovered new exit (range 4) 1314 | -10/Mines | Assisted by bots powering up and referring to "LRC-V3" 1368 | -10/Mines | Entered Subcaves 1368 | -10/Subcaves | Accompanied by 3 allies 1370 | -10/Subcaves | Reached level 3 1538 | -10/Subcaves | Learned location of Zion (-7) 1623 | -10/Subcaves | Lost 3 allies 1744 | -10/Subcaves | Shifting Twisted Machinery released Sub. Optics 1745 | -10/Subcaves | Discovered new exit (range 7) 1797 | -10/Subcaves | Shifting Twisted Machinery released Sub. Monowheel 1840 | -10/Subcaves | Core integrity fell below 50% 1979 | -10/Subcaves | Disturbed a concealed Subdweller 1991 | -10/Subcaves | Core integrity fell below 20% 2069 | -10/Subcaves | Discovered new exit (range 13) 2204 | -10/Subcaves | Ambushed by Subdweller buried in earth 2312 | -10/Subcaves | Build established: Hacker-Mutant 2458 | -10/Subcaves | Shifting Twisted Machinery released Sub. Beam Cannon 2535 | -10/Subcaves | Met a Zionite searching for "candidates" 2607 | -10/Subcaves | Visited 4L-MR0's lab 2621 | -10/Subcaves | Found Prototype Leg 2621 | -10/Subcaves | Identified Cargo Legs 2622 | -10/Subcaves | Attached Cargo Legs, gained temporary slots: Utility x2 2932 | -10/Subcaves | Reached level 4 2942 | -10/Subcaves | Discovered new exit (range 15) 3101 | -10/Subcaves | Shifting Twisted Machinery released Flamer 3103 | -10/Subcaves | Shifting Twisted Machinery released Mak. System Shield 3221 | -10/Subcaves | System corruption reached 10% 3602 | -10/Subcaves | Learned Materials interactive machine intel 3617 | -10/Subcaves | Visited Clippyterm 3621 | -10/Subcaves | Learned Factory garrison access intel 3948 | -10/Subcaves | Entered Materials 3949 | -8/Materials | Identified exit to Factory 3949 | -8/Materials | Core integrity fell below 50% 3950 | -8/Materials | Loaded intel: 19 interactive machine locations 3950 | -8/Materials | Reached level 5 3950 | -8/Materials | Reached level 6 4216 | -8/Materials | Garrison activated, responded to threat 4239 | -8/Materials | Reached level 7 4257 | -8/Materials | Central database locked down 4349 | -8/Materials | Identified exit to Storage 4576 | -8/Materials | Reached level 8 4951 | -8/Materials | Reached level 9 5039 | -8/Materials | Upgraded with Utility slot (x1) 5227 | -8/Materials | Learned location of 2 exits from Factory 5381 | -8/Materials | Entered Storage 5382 | -8/Storage | Identified exit to Recycling 5383 | -8/Storage | Reached level 10 5715 | -8/Storage | Reached level 11 6042 | -8/Storage | Used back door to open Recycling access 6067 | -8/Storage | Assisted by bots powering up and referring to "LRC-V3" 6103 | -8/Storage | Entered Recycling 6103 | -8/Recycling | Accompanied by 10 allies 6104 | -8/Recycling | Identified exit to Factory 6618 | -8/Recycling | Scanned before Scraplab entrance 6755 | -8/Recycling | Learned location of 1 exit from Storage 6881 | -8/Recycling | Learned location of 1 exit from Storage 6930 | -8/Recycling | Learned Factory security intel 6971 | -8/Recycling | Identified exit to Scraptown 7000 | -8/Recycling | Learned Storage security intel 7017 | -8/Recycling | Learned location of Extension (-4) 7080 | -8/Recycling | Learned 4 Factory zone layouts 7081 | -8/Recycling | Entered Scraplab 7126 | -8/Recycling | Entered Scraptown 7126 | -8/Scraptown | Accompanied by 10 allies 7128 | -8/Scraptown | Reached level 12 7320 | -8/Scraptown | Visited Bundlers 7385 | -8/Scraptown | Visited Red Mages 7409 | -8/Scraptown | Visited Awakened 7442 | -8/Scraptown | Visited Symbiants 7484 | -8/Scraptown | Visited TADAMA 7559 | -8/Scraptown | Visited Cyclists 7591 | -8/Scraptown | Visited Supply Room 7652 | -8/Scraptown | Heard Great Nut preacher, LISTEN AND RECITE! 8395 | -8/Scraptown | Upgraded with Weapon slot (x1) 8580 | -8/Scraptown | Attacked by Scraptown defenders 8582 | -8/Scraptown | Allies destroyed Triborg 8615 | -8/Scraptown | Self-destructed Last Messages --------------- 08581_ AX-GIZ(p) knocked back. 08582_ Triborg critical meltdown. 08582_ CPS modules swiftly deploy to protect Triborg components. 08582_ C2-19U(j) destroyed. 08584_ Destroyed Mak. Hacking Suite. 08586_ AX-GIZ(p) destroyed. 08600_ 60-5VL(g) suffers critical hit (Burn). 08601_ IA-RWG(g) destroyed. 08602_ 60-5VL(g) destroyed. 08605_ Ovr. Pulse Rifle suddenly begins malfunctioning. 08605_ CZ-F6X(g) suffers critical hit (Meltdown). 08605_ Ion Engine melted. 08605_ Salvaging Laser melted. 08607_ Overheating: Energy bleed (-66). 08607_ Upgraded: Heat Dissipation (+48) 08609_ Trooper 3f suffers critical hit (Destroy). Map ----- +----------------------------------------------------+ | " # #?????????????? | | * # #?????????????? | | #?????????????? | | # #?????????????? | | # ################# #?????????????? | | # #???????????????# #?????????????? | | # #############???# #?????????????? | | # # """"""""????# #?????????????? | | # """ """####??# #?????????????? | | # # """ +!!#??# #?????????????? | | " # # " " ""#!!#??# ###???????????? | | #### # "#!!#??# *""#"??????????? | | ???# # """ "#! #??# [%""""??????????? | | ???# # "" "#! #??# =""##??????????? | | ???# # """ "#! #??# ###???????????? | | #### # "####??# #####?????????? | | """# # " "?????# "?????????? | | # # """"" ""?????# "?????????? | | # #"""""""""""????# !!* "?????????? | | # ###########?????# !!!!! "?????????? | | # ################# !*%!* "?????????? | | # !!%]! "?????????? | | %!! "?????????? | | # g % "?????????? | | """# g "?????????? | | #### gg g @ "?????????? | | g g #"?????????? | | % gg [ #??????????? | | %% g*%% #??????????? | | ###### #############=#;######## ####??????????? | | #?# #?# % #??# #?????????????? | | #?#" "#?# #??# #?????????????? | | #?#"" ""#?# #??# #?????????????? | | #?#"" ""#?# #??# #?????????????? | | #?#"" ""#?# """"" #??# #?????????????? | | #?#"" ""#?# """"" #??# #?????????????? | | #?#"" " " ""#?# """"" #??# #?????????????? | | #?#"""""X""""""#?# #??# #?????????????? | | #?#""""""""""""#?# #??# #?????????????? | | #?##############?###########??# #?????????????? | | #?????????????????????????????# #?????????????? | | #??????????????????????######## #?????????????? | | #??????????????????????"""""""" #?????????????? | | #?????????????????????""" """"" #?????????????? | | ##????????????##????"""" " "" #?????????????? | | #???????????? #?????????????? | | ##????##?????? #???#"" "" "" " #?????????????? | | ##????"""????"" "??????""""""""" #?????????????? | | #????"" ""??""" "#???????""""""" #?????????????? | | ##???"" "?#""" "#????????###### #?????????????? | +----------------------------------------------------+ Best States ------------- Heat Dissipation 103 Energy Generation 21 Energy Capacity 440 Matter Stores 300 Matter Capacity 300 Sight Range 16 Terrain Scan Density 10 Armor Coverage 100 Resistance: KI 20 Resistance: TH 20 Resistance: EX 20 Resistance: EM 20 Resistance: I 20 Resistance: S 20 Resistance: P 20 Evasion (%) 55 Targeting Accuracy 5 Offensive Hacking 36 Defensive Hacking 21 Item Schematics ----------------- None Robot Schematics ------------------ None Fabricated ------------ Nothing Alien Tech Used ----------------- None Achievements -------------- None Challenges ------------ None RPGLIKE | -11 -10 -10 -10 -8 -8 -8 -8 --------- Run | Yrd Mat Min Sub Mat Sto Rec Scr Levels Raised 11 | . 1 . 2 5 2 . 1 XP Earned 20826 | 4000 2135 600 2000 7886 2906 931 368 XP Spent 10320 | 1500 2100 . 160 4000 . . 2560 Upgrades 33 | 3 9 . 4 8 . . 9 Power Slot 1 | 1 . . . . . . . Propulsion Slot 1 | 1 . . . . . . . Utility Slot 2 | 1 . . . 1 . . . Weapon Slot 2 | . 1 . . . . . 1 Core Integrity 4 | . . . 4 . . . . Heat Dissipation 13 | . 5 . . . . . 8 Inventory Capacity 1 | . 1 . . . . . . Ranged Accuracy 4 | . 2 . . 2 . . . Hack Attack % 3 | . . . . 3 . . . Hack Defense % 2 | . . . . 2 . . . Protomatter Created 831 | . 101 . 272 255 175 28 . Integrity Restored 2058 | . 134 64 609 765 402 84 . Core 1997 | . 87 50 609 765 402 84 . Parts 61 | . 47 14 . . . . . Protomatter Decayed 281 | . 28 91 162 . . . . Game ------ Seed ParticleTransportUnit Manual? 0 Play Time 01:12:18 Cumulative 116.3 hours Start 2024.09.20 @ 19:20:09 End 2024.09.21 @ 18:18:11 Sessions 7 Manual Loads 0 Difficulty Adventurer Special Mode Winter2019/RPGLIKE Game No. 65 Rogue 0 Adventurer 65 Explorer 0 Win Type - Total 6 Types 2/0/2/2/0/0/0/0/0 Lore% 57 Gallery% 55 Achievement% 70 Wizard Run 0 Options --------- Layout 2 ASCII 0 Keyboard 0 Movement Numpad Keybinds 0 Fullscreen 2 Font 24/Smallcaps Map View 50x44 Zoom Use 0% Tactical HUD 1 Map Filters NONE Filters NONE Steam 1 RUN: a9e39457-fbf9-4910-9383-a581a68ee1bf